fUSD/lending_fUSD_20260607
["ID","MTS","AMOUNT","RATE_DAILY","PERIOD"]
[424374580,1780815031000,-1499.512,9.297e-05,2]
[424374574,1780815031000,-150.0,9.018e-05,2]
[424374582,1780815031000,-150.0,9.385e-05,2]
[424374579,1780815031000,-605.79,9.204e-05,2]
[424374585,1780815031000,-12572.2,9.386e-05,2]
[424374584,1780815031000,-5598.33149123,9.386e-05,2]
[424374575,1780815031000,-250.0,9.051e-05,2]
[424374581,1780815031000,-166.68,9.374e-05,2]
[424374583,1780815031000,-164.16938468,9.386e-05,2]
[424374586,1780815032000,-1222.84,9.386e-05,2]
[424374596,1780815037000,-5091.90804701,9.386e-05,2]
[424374595,1780815037000,-811.33023682,9.386e-05,2]
[424374594,1780815037000,-418.48976318,9.385e-05,2]
[424374601,1780815038000,-2500.0,9.386e-05,2]
[424374603,1780815038000,-864.39190537,9.386e-05,2]
[424374600,1780815038000,-5209.33297773,9.386e-05,2]
[424374602,1780815038000,-1655.67069928,9.386e-05,2]
[424374598,1780815038000,-815.79999999,9.386e-05,2]
[424374599,1780815038000,-370.46073927,9.386e-05,2]
[424374597,1780815038000,-1408.12552327,9.386e-05,2]
[424374763,1780815040000,-818.78494288,9.386e-05,2]
[424374765,1780815040000,-265.70128077,9.386e-05,2]
[424374766,1780815040000,-3550.705,9.386e-05,2]
[424374764,1780815040000,-4505.05201008,9.386e-05,2]
[424374767,1780815040000,-947.20668299,9.386e-05,2]
[424374778,1780815042000,-1265.0403738,9.386e-05,2]
[424374786,1780815043000,-464.504,9.386e-05,2]
[424374787,1780815043000,-729.11141954,9.386e-05,2]
[424374781,1780815043000,-6443.9844399,9.386e-05,2]
[424374780,1780815043000,-11011.99143714,9.386e-05,2]
[424374779,1780815043000,-560.37151518,9.386e-05,2]
[424374789,1780815046000,-739.45547386,9.386e-05,2]
[424374791,1780815046000,-462.31375,9.386e-05,2]
[424374790,1780815046000,-3965.27281942,9.386e-05,2]
[424374794,1780815046000,-616.76,9.386e-05,2]
[424374792,1780815046000,-443.07997574,9.386e-05,2]
[424374795,1780815046000,-246963.85251281,9.386e-05,2]
[424374793,1780815046000,-2468.0,9.386e-05,2]
[424374805,1780815182000,2498.0,9.393e-05,5]
[424374806,1780815234000,350.0,9.589e-05,3]
[424374814,1780815581000,777.22642244,8.52e-05,30]
[424374816,1780815627000,350.0,9.589e-05,3]
[424374818,1780815688000,1000.0,0.0003,120]
[424374820,1780815710000,152.0,9.713e-05,7]
[424374821,1780815729000,152.0,9.718e-05,7]
[424374823,1780815786000,2007.0,9.393e-05,5]
[424374827,1780816016000,350.0,9.589e-05,3]
[424374829,1780816123000,161.16,0.00028973,120]
[424374831,1780816140000,1101.70294198,0.00029999,120]
[424374843,1780816231000,-1185.2681964,8.335e-05,2]
[424374842,1780816231000,-157.3318036,8.131e-05,2]
[424374863,1780816232000,-150.0,9.237e-05,2]
[424374865,1780816232000,-500.0,9.238e-05,2]
[424374867,1780816232000,-500.0,9.238e-05,2]
[424374866,1780816232000,-173.61525937,9.238e-05,2]
[424374869,1780816232000,-500.0,9.238e-05,2]
[424374868,1780816232000,-500.0,9.238e-05,2]
[424374873,1780816232000,-500.0,9.238e-05,2]
[424374875,1780816232000,-474.24221948,9.238e-05,2]
[424374871,1780816232000,-500.0,9.238e-05,2]
[424374872,1780816232000,-500.0,9.238e-05,2]
[424374864,1780816232000,-500.0,9.238e-05,2]
[424374874,1780816232000,-500.0,9.238e-05,2]
[424374877,1780816232000,-500.0,9.238e-05,2]
[424374879,1780816232000,-215.80221948,9.238e-05,2]
[424374878,1780816232000,-500.0,9.238e-05,2]
[424374870,1780816232000,-500.0,9.238e-05,2]
[424374862,1780816232000,-82.14252115,9.053e-05,2]
[424374844,1780816232000,-587.31438375,8.335e-05,2]
[424374861,1780816232000,-364.99962541,9.053e-05,2]
[424374876,1780816232000,-25.75778052,9.238e-05,2]
[424374849,1780816232000,-150.0,8.417e-05,2]
[424374845,1780816232000,-160.72741985,8.335e-05,2]
[424374846,1780816232000,-725.15694394,8.403e-05,2]
[424374847,1780816232000,-406.36135081,8.403e-05,2]
[424374848,1780816232000,-722.73864919,8.403e-05,2]
[424374852,1780816232000,-250.0,8.529e-05,2]
[424374853,1780816232000,-200.0,8.538e-05,2]
[424374851,1780816232000,-432.88,8.52e-05,2]
[424374856,1780816232000,-154.56762575,8.545e-05,2]
[424374857,1780816232000,-158.13,8.619e-05,2]
[424374855,1780816232000,-468.75595281,8.545e-05,2]
[424374854,1780816232000,-376.67642144,8.545e-05,2]
[424374860,1780816232000,-250.0,8.944e-05,2]
[424374859,1780816232000,-2167.08597989,8.697e-05,2]
[424374858,1780816232000,-1953.13402011,8.697e-05,2]
[424374880,1780816232000,-284.19778052,9.238e-05,2]
[424374850,1780816232000,-150.0,8.501e-05,2]
[424374886,1780816232000,-401.08414919,9.238e-05,2]
[424374905,1780816232000,-500.0,9.284e-05,2]
[424374906,1780816232000,-500.0,9.284e-05,2]
[424374904,1780816232000,-500.0,9.284e-05,2]
[424374908,1780816232000,-500.0,9.284e-05,2]
[424374912,1780816232000,-500.0,9.284e-05,2]
[424374909,1780816232000,-500.0,9.284e-05,2]
[424374916,1780816232000,-491.0360497,9.285e-05,2]
[424374907,1780816232000,-500.0,9.284e-05,2]
[424374910,1780816232000,-500.0,9.284e-05,2]
[424374911,1780816232000,-500.0,9.284e-05,2]
[424374914,1780816232000,-2458.89395422,9.285e-05,2]
[424374915,1780816232000,-351.02307539,9.285e-05,2]
[424374913,1780816232000,-500.0,9.284e-05,2]
[424374917,1780816232000,-357.88151182,9.285e-05,2]
[424374881,1780816232000,-31.23031641,9.238e-05,2]
[424374903,1780816232000,-500.0,9.284e-05,2]
[424374902,1780816232000,-500.0,9.284e-05,2]
[424374901,1780816232000,-500.0,9.284e-05,2]
[424374899,1780816232000,-500.0,9.284e-05,2]
[424374887,1780816232000,-166.68,9.246e-05,2]
[424374884,1780816232000,-500.0,9.238e-05,2]
[424374882,1780816232000,-468.76968359,9.238e-05,2]
[424374885,1780816232000,-194.91585081,9.238e-05,2]
[424374883,1780816232000,-500.0,9.238e-05,2]
[424374888,1780816232000,-500.0,9.284e-05,2]
[424374890,1780816232000,-183.08077087,9.284e-05,2]
[424374900,1780816232000,-609.79752407,9.284e-05,2]
[424374889,1780816232000,-316.91922913,9.284e-05,2]
[424374892,1780816232000,-138.30020348,9.284e-05,2]
[424374894,1780816232000,-182.32020348,9.284e-05,2]
[424374893,1780816232000,-361.69979652,9.284e-05,2]
[424374897,1780816232000,-500.0,9.284e-05,2]
[424374896,1780816232000,-500.0,9.284e-05,2]
[424374898,1780816232000,-500.0,9.284e-05,2]
[424374895,1780816232000,-317.67979652,9.284e-05,2]
[424374891,1780816232000,-500.27682562,9.284e-05,2]
[424375027,1780816238000,-545.85460464,9.285e-05,2]
[424375025,1780816238000,-1466.25518156,9.285e-05,2]
[424375026,1780816238000,-516.70824417,9.285e-05,2]
[424375028,1780816238000,-4730.75089867,9.285e-05,2]
[424375031,1780816238000,-780.23250482,9.285e-05,2]
[424375029,1780816238000,-2208.74522651,9.285e-05,2]
[424375030,1780816238000,-4256.99165269,9.285e-05,2]
[424375032,1780816238000,-3221.44681858,9.285e-05,2]
[424375033,1780816238000,-4143.25905905,9.285e-05,2]
[424375289,1780816240000,-11573.99686272,9.285e-05,2]
[424375286,1780816240000,-1068.32136773,9.285e-05,2]
[424375291,1780816240000,-17430.354052,9.285e-05,2]
[424375328,1780816241000,-43131.14140928,9.285e-05,2]
[424375330,1780816241000,-15548.4529371,9.285e-05,2]
[424375329,1780816241000,-332.11298935,9.285e-05,2]
[424375332,1780816241000,-292.94283422,9.285e-05,2]
[424375333,1780816241000,-2500.0,9.286e-05,2]
[424375331,1780816241000,-591.56710447,9.285e-05,2]
[424375334,1780816241000,-1066.79213321,9.286e-05,2]
[424375340,1780816246000,-785.48129672,9.286e-05,2]
[424375338,1780816246000,-666.0,9.286e-05,2]
[424375339,1780816246000,-1551.22433577,9.286e-05,2]
[424375341,1780816248000,350.0,9.589e-05,3]
[424375342,1780816390000,1602.0,9.292e-05,5]
[424375343,1780816405000,350.0,9.589e-05,3]
[424375351,1780816796000,350.0,9.589e-05,3]
[424375356,1780816995000,1282.0,9.292e-05,5]
[424375357,1780817060000,2296.16,0.00030137,120]
[424375358,1780817148000,350.0,9.589e-05,3]
[424375374,1780817432000,-2634.67596634,8.608e-05,2]
[424375379,1780817432000,-152.50221682,8.75e-05,2]
[424375378,1780817432000,-152.50221682,8.75e-05,2]
[424375377,1780817432000,-152.50221682,8.75e-05,2]
[424375375,1780817432000,-160.0,8.628e-05,2]
[424375376,1780817432000,-253.1,8.64e-05,2]
[424375373,1780817432000,-1546.64,8.608e-05,2]
[424375372,1780817432000,-1254.07281092,8.596e-05,2]
[424375370,1780817432000,-808.4534481,8.596e-05,2]
[424375368,1780817432000,-930.70635496,8.596e-05,2]
[424375369,1780817432000,-444.0,8.596e-05,2]
[424375371,1780817432000,-302.77030002,8.596e-05,2]
[424375380,1780817432000,-500.0,8.779e-05,2]
[424375387,1780817432000,-168.10107422,8.779e-05,2]
[424375382,1780817432000,-414.09697313,8.779e-05,2]
[424375381,1780817432000,-500.0,8.779e-05,2]
[424375396,1780817432000,-1507.28120465,8.78e-05,2]
[424375393,1780817432000,-19160.63834311,8.78e-05,2]
[424375392,1780817432000,-741.10780409,8.78e-05,2]
[424375390,1780817432000,-1225.10721475,8.78e-05,2]
[424375389,1780817432000,-8435.43757971,8.78e-05,2]
[424375391,1780817432000,-2162.22959595,8.78e-05,2]
[424375385,1780817432000,-512.90966803,8.779e-05,2]
[424375398,1780817432000,-356.44950306,8.78e-05,2]
[424375386,1780817432000,-205.05998396,8.779e-05,2]
[424375383,1780817432000,-500.0,8.779e-05,2]
[424375384,1780817432000,-500.0,8.779e-05,2]
[424375388,1780817432000,-150.0,8.779e-05,2]
[424375410,1780817438000,-2319.68970089,8.78e-05,2]
[424375408,1780817438000,-1548.92449758,8.78e-05,2]
[424375411,1780817438000,-983.744131,8.78e-05,2]
[424375409,1780817438000,-418.98263072,8.78e-05,2]
[424375412,1780817438000,-1158.67285135,8.78e-05,2]
[424375413,1780817438000,-781.46068898,8.78e-05,2]
[424375414,1780817438000,-14078.95110786,8.78e-05,2]
[424375415,1780817438000,-3892.53075856,8.78e-05,2]
[424375416,1780817438000,-595.8880944,8.78e-05,2]
[424375417,1780817438000,-534.4486427,8.78e-05,2]
[424375418,1780817438000,-448.0,8.78e-05,2]
[424375423,1780817440000,-615.01,8.78e-05,2]
[424375424,1780817440000,-328.4,8.78e-05,2]
[424375425,1780817440000,-20720.37023086,8.78e-05,2]
[424375427,1780817440000,-706.13587628,8.78e-05,2]
[424375426,1780817440000,-2802.50531163,8.78e-05,2]
[424375428,1780817440000,-730.1,8.78e-05,2]
[424375429,1780817440000,-616.95700799,8.78e-05,2]
[424375430,1780817440000,-73834.67382501,8.78e-05,2]
[424375431,1780817440000,-263.10308744,8.78e-05,2]
[424375473,1780817443000,-5403.39945202,8.78e-05,2]
[424375472,1780817443000,-503.0,8.78e-05,2]
[424375475,1780817443000,-1240.62215,8.78e-05,2]
[424375477,1780817443000,-1035.22499536,8.78e-05,2]
[424375476,1780817443000,-375.18789012,8.78e-05,2]
[424375478,1780817443000,-939.0,8.78e-05,2]
[424375479,1780817443000,-3986.73412834,8.78e-05,2]
[424375474,1780817443000,-713.11239565,8.78e-05,2]
[424375483,1780817446000,-28840.09911524,8.78e-05,2]
[424375482,1780817446000,-1957.56626762,8.78e-05,2]
[424375487,1780817447000,-458.38907396,8.78e-05,2]
[424375485,1780817447000,-1603.3,8.78e-05,2]
[424375484,1780817447000,-627.36672443,8.78e-05,2]
[424375486,1780817447000,-602.82654603,8.78e-05,2]
[424375495,1780817535000,350.0,9.397e-05,3]
[424375496,1780817563000,773.66,0.00030137,120]
[424375497,1780817603000,823.0,9.118e-05,5]
[424375499,1780817923000,350.0,9.397e-05,3]
[424375501,1780818047000,350.0,9.397e-05,3]
[424375502,1780818208000,659.0,9.118e-05,5]
[424375503,1780818307000,350.0,9.397e-05,3]
[424375512,1780818632000,-1190.42696697,7.908e-05,2]
[424375513,1780818632000,-602.02,7.908e-05,2]
[424375524,1780818632000,-347.40235177,8.577e-05,2]
[424375511,1780818632000,-1751.74,7.884e-05,2]
[424375514,1780818632000,-272.62,7.936e-05,2]
[424375516,1780818632000,-166.68,8.031e-05,2]
[424375526,1780818632000,-511.58684635,8.577e-05,2]
[424375518,1780818632000,-1237.31,8.219e-05,2]
[424375520,1780818632000,-908.04,8.219e-05,2]
[424375525,1780818632000,-331.46207981,8.577e-05,2]
[424375521,1780818632000,-672.84,8.5e-05,2]
[424375523,1780818632000,-251.93596117,8.577e-05,2]
[424375517,1780818632000,-2196.39589,8.178e-05,2]
[424375509,1780818632000,-200.0,7.744e-05,2]
[424375515,1780818632000,-12522.62,7.943e-05,2]
[424375510,1780818632000,-500.05,7.884e-05,2]
[424375522,1780818632000,-271.00770342,8.576e-05,2]
[424375519,1780818632000,-165.68,8.219e-05,2]
[424375542,1780818632000,-511.58684635,8.577e-05,2]
[424375540,1780818632000,-511.58684635,8.577e-05,2]
[424375536,1780818632000,-511.58684635,8.577e-05,2]
[424375538,1780818632000,-511.58684635,8.577e-05,2]
[424375533,1780818632000,-511.58684635,8.577e-05,2]
[424375532,1780818632000,-511.58684635,8.577e-05,2]
[424375531,1780818632000,-511.58684635,8.577e-05,2]
[424375537,1780818632000,-511.58684635,8.577e-05,2]
[424375530,1780818632000,-511.58684635,8.577e-05,2]
[424375529,1780818632000,-511.58684635,8.577e-05,2]
[424375539,1780818632000,-511.58684635,8.577e-05,2]
[424375527,1780818632000,-511.58684635,8.577e-05,2]
[424375535,1780818632000,-511.58684635,8.577e-05,2]
[424375528,1780818632000,-511.58684635,8.577e-05,2]
[424375534,1780818632000,-511.58684635,8.577e-05,2]
[424375600,1780818633000,-511.58684635,8.577e-05,2]
[424375591,1780818633000,-511.58684635,8.577e-05,2]
[424375604,1780818633000,-511.58684635,8.577e-05,2]
[424375606,1780818633000,-511.58684635,8.577e-05,2]
[424375595,1780818633000,-511.58684635,8.577e-05,2]
[424375602,1780818633000,-511.58684635,8.577e-05,2]
[424375608,1780818633000,-511.58684635,8.577e-05,2]
[424375593,1780818633000,-511.58684635,8.577e-05,2]
[424375598,1780818633000,-511.58684635,8.577e-05,2]
[424375626,1780818633000,-506.47097789,8.577e-05,2]
[424375612,1780818633000,-506.47097789,8.577e-05,2]
[424375614,1780818633000,-506.47097789,8.577e-05,2]
[424375618,1780818633000,-506.47097789,8.577e-05,2]
[424375620,1780818633000,-506.47097789,8.577e-05,2]
[424375622,1780818633000,-506.47097789,8.577e-05,2]
[424375616,1780818633000,-506.47097789,8.577e-05,2]
[424375589,1780818633000,-511.58684635,8.577e-05,2]
[424375624,1780818633000,-506.47097789,8.577e-05,2]
[424375630,1780818633000,-506.47097789,8.577e-05,2]
[424375610,1780818633000,-506.47097789,8.577e-05,2]
[424375587,1780818633000,-511.58684635,8.577e-05,2]
[424375583,1780818633000,-511.58684635,8.577e-05,2]
[424375564,1780818633000,-511.58684635,8.577e-05,2]
[424375544,1780818633000,-511.58684635,8.577e-05,2]
[424375553,1780818633000,-511.58684635,8.577e-05,2]
[424375558,1780818633000,-511.58684635,8.577e-05,2]
[424375546,1780818633000,-511.58684635,8.577e-05,2]
[424375548,1780818633000,-511.58684635,8.577e-05,2]
[424375560,1780818633000,-511.58684635,8.577e-05,2]
[424375551,1780818633000,-511.58684635,8.577e-05,2]
[424375556,1780818633000,-511.58684635,8.577e-05,2]
[424375550,1780818633000,-511.58684635,8.577e-05,2]
[424375549,1780818633000,-511.58684635,8.577e-05,2]
[424375562,1780818633000,-511.58684635,8.577e-05,2]
[424375576,1780818633000,-511.58684635,8.577e-05,2]
[424375578,1780818633000,-511.58684635,8.577e-05,2]
[424375580,1780818633000,-511.58684635,8.577e-05,2]
[424375631,1780818633000,-506.47097789,8.577e-05,2]
[424375566,1780818633000,-511.58684635,8.577e-05,2]
[424375574,1780818633000,-511.58684635,8.577e-05,2]
[424375585,1780818633000,-511.58684635,8.577e-05,2]
[424375570,1780818633000,-511.58684635,8.577e-05,2]
[424375572,1780818633000,-511.58684635,8.577e-05,2]
[424375629,1780818633000,-506.47097789,8.577e-05,2]
[424375568,1780818633000,-511.58684635,8.577e-05,2]
[424375632,1780818633000,-506.47097789,8.577e-05,2]
[424375663,1780818633000,-2500.0,8.579e-05,2]
[424375659,1780818633000,-506.4709779,8.577e-05,2]
[424375658,1780818633000,-506.4709779,8.577e-05,2]
[424375660,1780818633000,-506.47097788,8.577e-05,2]
[424375664,1780818633000,-150.0,8.677e-05,2]
[424375661,1780818633000,-45752.19490889,8.578e-05,2]
[424375665,1780818633000,-500.0,8.678e-05,2]
[424375657,1780818633000,-506.4709779,8.577e-05,2]
[424375662,1780818633000,-410184.26669111,8.578e-05,2]
[424375656,1780818633000,-506.4709779,8.577e-05,2]
[424375666,1780818633000,-197.70791182,8.678e-05,2]
[424375667,1780818633000,-631.46171998,8.678e-05,2]
[424375670,1780818633000,-2360.072,8.678e-05,2]
[424375669,1780818633000,-454.03634811,8.678e-05,2]
[424375671,1780818633000,-152.756,8.678e-05,2]
[424375672,1780818633000,-759164.09485492,8.679e-05,2]
[424375674,1780818633000,-75199.28454145,8.679e-05,2]
[424375675,1780818633000,-171746.79059186,8.679e-05,2]
[424375676,1780818633000,-3792.52452,8.679e-05,2]
[424375628,1780818633000,-506.47097789,8.577e-05,2]
[424375668,1780818633000,-500.0,8.678e-05,2]
[424375654,1780818633000,-506.4709779,8.577e-05,2]
[424375673,1780818633000,-52026.17228773,8.679e-05,2]
[424375655,1780818633000,-506.4709779,8.577e-05,2]
[424375634,1780818633000,-506.47097789,8.577e-05,2]
[424375637,1780818633000,-506.47097789,8.577e-05,2]
[424375633,1780818633000,-506.47097789,8.577e-05,2]
[424375635,1780818633000,-506.47097789,8.577e-05,2]
[424375636,1780818633000,-506.47097789,8.577e-05,2]
[424375641,1780818633000,-506.47097789,8.577e-05,2]
[424375652,1780818633000,-506.4709779,8.577e-05,2]
[424375643,1780818633000,-506.47097789,8.577e-05,2]
[424375640,1780818633000,-506.47097789,8.577e-05,2]
[424375639,1780818633000,-506.47097789,8.577e-05,2]
[424375642,1780818633000,-506.47097789,8.577e-05,2]
[424375644,1780818633000,-506.47097789,8.577e-05,2]
[424375638,1780818633000,-506.47097789,8.577e-05,2]
[424375648,1780818633000,-506.47097789,8.577e-05,2]
[424375650,1780818633000,-506.4709779,8.577e-05,2]
[424375647,1780818633000,-506.47097789,8.577e-05,2]
[424375653,1780818633000,-506.4709779,8.577e-05,2]
[424375651,1780818633000,-506.4709779,8.577e-05,2]
[424375645,1780818633000,-506.47097789,8.577e-05,2]
[424375646,1780818633000,-506.47097789,8.577e-05,2]
[424375649,1780818633000,-506.4709779,8.577e-05,2]
[424375694,1780818638000,-486.6599911,8.679e-05,2]
[424375695,1780818638000,-307.0,8.679e-05,2]
[424375692,1780818638000,-150.0,7.962e-05,2]
[424375693,1780818638000,-2152.76577305,8.679e-05,2]
[424375919,1780818640000,-873.22049338,8.679e-05,2]
[424375918,1780818640000,-14951.51937521,8.679e-05,2]
[424375996,1780818643000,-903.28823356,8.679e-05,2]
[424375995,1780818643000,-614.54,8.679e-05,2]
[424375999,1780818643000,-1812.93083259,8.679e-05,2]
[424375998,1780818643000,-1983.58170764,8.679e-05,2]
[424376004,1780818646000,-3623.9157,8.679e-05,2]
[424376036,1780818647000,-500.0,9.054e-05,2]
[424376046,1780818647000,-686.0,9.054e-05,2]
[424376038,1780818647000,-500.0,9.054e-05,2]
[424376035,1780818647000,-500.0,9.054e-05,2]
[424376040,1780818647000,-500.0,9.054e-05,2]
[424376042,1780818647000,-500.0,9.054e-05,2]
[424376047,1780818647000,-686.0,9.054e-05,2]
[424376037,1780818647000,-500.0,9.054e-05,2]
[424376041,1780818647000,-500.0,9.054e-05,2]
[424376039,1780818647000,-500.0,9.054e-05,2]
[424376045,1780818647000,-686.0,9.054e-05,2]
[424376043,1780818647000,-273.70399066,9.054e-05,2]
[424376044,1780818647000,-686.0,9.054e-05,2]
[424376049,1780818647000,-686.0,9.054e-05,2]
[424376051,1780818647000,-686.0,9.054e-05,2]
[424376048,1780818647000,-686.0,9.054e-05,2]
[424376057,1780818647000,-686.0,9.054e-05,2]
[424376050,1780818647000,-686.0,9.054e-05,2]
[424376058,1780818647000,-686.0,9.054e-05,2]
[424376054,1780818647000,-686.0,9.054e-05,2]
[424376053,1780818647000,-686.0,9.054e-05,2]
[424376052,1780818647000,-686.0,9.054e-05,2]
[424376062,1780818647000,-686.0,9.054e-05,2]
[424376055,1780818647000,-686.0,9.054e-05,2]
[424376028,1780818647000,-182.95976072,9.054e-05,2]
[424376056,1780818647000,-686.0,9.054e-05,2]
[424376060,1780818647000,-686.0,9.054e-05,2]
[424376034,1780818647000,-500.0,9.054e-05,2]
[424376005,1780818647000,-4651.03806341,8.679e-05,2]
[424376026,1780818647000,-150.0,9.054e-05,2]
[424376078,1780818647000,-150.0,9.054e-05,2]
[424376006,1780818647000,-3116.05,8.679e-05,2]
[424376007,1780818647000,-402594.6230341,8.679e-05,2]
[424376008,1780818647000,-151.0,8.679e-05,2]
[424376009,1780818647000,-151.0,8.679e-05,2]
[424376011,1780818647000,-250.0,8.699e-05,2]
[424376013,1780818647000,-151.0,8.777e-05,2]
[424376012,1780818647000,-166.66,8.706e-05,2]
[424376010,1780818647000,-10043.5333,8.68e-05,2]
[424376014,1780818647000,-151.0,8.877e-05,2]
[424376015,1780818647000,-151.0,8.877e-05,2]
[424376019,1780818647000,-158.13,8.963e-05,2]
[424376031,1780818647000,-150.0,9.054e-05,2]
[424376018,1780818647000,-500.0,8.952e-05,2]
[424376016,1780818647000,-105824.9802577,8.88e-05,2]
[424376017,1780818647000,-151.0,8.88e-05,2]
[424376022,1780818647000,-500.0,9.054e-05,2]
[424376029,1780818647000,-183.79775958,9.054e-05,2]
[424376025,1780818647000,-150.0,9.054e-05,2]
[424376033,1780818647000,-153.43441551,9.054e-05,2]
[424376024,1780818647000,-396.2261362,9.054e-05,2]
[424376030,1780818647000,-501.1827219,9.054e-05,2]
[424376021,1780818647000,-500.0,9.054e-05,2]
[424376023,1780818647000,-500.0,9.054e-05,2]
[424376027,1780818647000,-500.0,9.054e-05,2]
[424376032,1780818647000,-150.0,9.054e-05,2]
[424376020,1780818647000,-1000.0,9.016e-05,2]
[424376076,1780818647000,-689.96730033,9.054e-05,2]
[424376072,1780818647000,-686.0,9.054e-05,2]
[424376082,1780818647000,-150.0,9.054e-05,2]
[424376105,1780818647000,-500.0,9.602e-05,2]
[424376111,1780818647000,-500.0,9.773e-05,2]
[424376121,1780818647000,-1000.0,0.0001,2]
[424376113,1780818647000,-1000.0,0.0001,2]
[424376112,1780818647000,-350.0,9.986e-05,2]
[424376110,1780818647000,-167.79416877,9.74e-05,2]
[424376117,1780818647000,-1000.0,0.0001,2]
[424376114,1780818647000,-1000.0,0.0001,2]
[424376118,1780818647000,-1000.0,0.0001,2]
[424376116,1780818647000,-1000.0,0.0001,2]
[424376115,1780818647000,-1000.0,0.0001,2]
[424376119,1780818647000,-1000.0,0.0001,2]
[424376107,1780818647000,-166.66,9.664e-05,2]
[424376124,1780818647000,-1000.0,0.0001,2]
[424376125,1780818647000,-1000.0,0.0001,2]
[424376128,1780818647000,-1000.0,0.0001,2]
[424376126,1780818647000,-1000.0,0.0001,2]
[424376127,1780818647000,-1000.0,0.0001,2]
[424376123,1780818647000,-1000.0,0.0001,2]
[424376132,1780818647000,-1019.0,0.0001,2]
[424376133,1780818647000,-163.62,0.0001,2]
[424376129,1780818647000,-1000.0,0.0001,2]
[424376130,1780818647000,-1000.0,0.0001,2]
[424376131,1780818647000,-1000.0,0.0001,2]
[424376135,1780818647000,-2000.0,0.0001,2]
[424376080,1780818647000,-158.42563194,9.054e-05,2]
[424376122,1780818647000,-1000.0,0.0001,2]
[424376104,1780818647000,-500.0,9.602e-05,2]
[424376120,1780818647000,-1000.0,0.0001,2]
[424376102,1780818647000,-500.0,9.602e-05,2]
[424376064,1780818647000,-686.0,9.054e-05,2]
[424376068,1780818647000,-686.0,9.054e-05,2]
[424376101,1780818647000,-500.0,9.602e-05,2]
[424376066,1780818647000,-686.0,9.054e-05,2]
[424376074,1780818647000,-686.0,9.054e-05,2]
[424376134,1780818647000,-151.0,0.0001,2]
[424376070,1780818647000,-686.0,9.054e-05,2]
[424376086,1780818647000,-150.0,9.054e-05,2]
[424376088,1780818647000,-150.0,9.054e-05,2]
[424376098,1780818647000,-500.0,9.499e-05,2]
[424376087,1780818647000,-218.40790855,9.054e-05,2]
[424376089,1780818647000,-270.44,9.06e-05,2]
[424376090,1780818647000,-151.0,9.182e-05,2]
[424376084,1780818647000,-150.0,9.054e-05,2]
[424376092,1780818647000,-500.0,9.225e-05,2]
[424376093,1780818647000,-1237.31,9.247e-05,2]
[424376109,1780818647000,-350.0,9.739e-05,2]
[424376106,1780818647000,-500.19525831,9.602e-05,2]
[424376108,1780818647000,-151.0,9.733e-05,2]
[424376099,1780818647000,-255.0,9.544e-05,2]
[424376100,1780818647000,-11640.8083627,9.589e-05,2]
[424376103,1780818647000,-500.0,9.602e-05,2]
[424376094,1780818647000,-166.68,9.321e-05,2]
[424376091,1780818647000,-166.66,9.185e-05,2]
[424376097,1780818647000,-151.22179412,9.386e-05,2]
[424376096,1780818647000,-215.83393831,9.362e-05,2]
[424376095,1780818647000,-162.27,9.34e-05,2]
[424376155,1780818648000,-166.66,0.00010143,2]
[424376153,1780818648000,-158.13,0.00010084,2]
[424376147,1780818648000,-419.0,0.00010007,2]
[424376158,1780818648000,-350.0,0.00010251,2]
[424376157,1780818648000,-350.0,0.00010244,2]
[424376149,1780818648000,-279.325552,0.00010007,2]
[424376150,1780818648000,-350.0,0.00010013,2]
[424376151,1780818648000,-1067.79,0.00010027,2]
[424376152,1780818648000,-500.0,0.00010047,2]
[424376154,1780818648000,-315.0,0.000101,2]
[424376148,1780818648000,-933.0,0.00010007,2]
[424376141,1780818648000,-712.52669262,0.0001,2]
[424376144,1780818648000,-382.0,0.00010007,2]
[424376140,1780818648000,-2000.0,0.0001,2]
[424376136,1780818648000,-2000.0,0.0001,2]
[424376139,1780818648000,-2000.0,0.0001,2]
[424376142,1780818648000,-151.0,0.00010004,2]
[424376137,1780818648000,-2000.0,0.0001,2]
[424376143,1780818648000,-1358.056,0.00010007,2]
[424376138,1780818648000,-2000.0,0.0001,2]
[424376145,1780818648000,-1274.0,0.00010007,2]
[424376156,1780818648000,-350.0,0.0001016,2]
[424376146,1780818648000,-3754.352,0.00010007,2]
[424376159,1780818648000,-1237.31,0.00010274,2]
[424376168,1780818648000,-1067.79,0.00010529,2]